fUSD/lending_fUSD_20240612
["ID","MTS","AMOUNT","RATE_DAILY","PERIOD"]
[329222600,1718188237647,-500.0,0.00019315,2]
[329222602,1718188237658,-500.0,0.00019315,2]
[329222603,1718188237669,-500.0,0.00019315,2]
[329222605,1718188237680,-500.0,0.00019315,2]
[329222607,1718188237691,-500.0,0.00019315,2]
[329222609,1718188237703,-500.0,0.00019315,2]
[329222611,1718188237713,-248.82696899,0.00019315,2]
[329222613,1718188237724,-500.0,0.00019315,2]
[329222615,1718188237735,-301.63795261,0.00019315,2]
[329222617,1718188237746,-500.0,0.00019315,2]
[329222618,1718188237756,-500.0,0.00019315,2]
[329222620,1718188237767,-500.0,0.00019315,2]
[329222622,1718188237777,-500.0,0.00019315,2]
[329222624,1718188237788,-621.13607206,0.00019315,2]
[329222626,1718188237799,-1217.81,0.00019315,2]
[329222628,1718188237809,-947.07,0.00019315,2]
[329222629,1718188237820,-500.0,0.00019315,2]
[329222631,1718188237830,-500.0,0.00019315,2]
[329222633,1718188237843,-676.54,0.00019315,2]
[329222635,1718188237853,-1063.45,0.00019315,2]
[329222637,1718188237866,-500.0,0.00019315,2]
[329222639,1718188237878,-852.62,0.00019315,2]
[329222641,1718188237889,-628.41,0.00019315,2]
[329222643,1718188237904,-841.77,0.00019315,2]
[329222645,1718188237916,-500.0,0.00019315,2]
[329222646,1718188237930,-500.0,0.00019315,2]
[329222648,1718188237945,-500.0,0.00019315,2]
[329222650,1718188237956,-1088.32,0.00019315,2]
[329222652,1718188237967,-500.0,0.00019315,2]
[329222654,1718188237980,-500.0,0.00019315,2]
[329222656,1718188237991,-500.0,0.00019315,2]
[329222658,1718188238025,-500.0,0.00019315,2]
[329222660,1718188238041,-500.0,0.00019315,2]
[329222662,1718188238052,-789.81,0.00019315,2]
[329222664,1718188238063,-575.18,0.00019315,2]
[329222666,1718188238074,-532.67,0.00019315,2]
[329222668,1718188238086,-637.84,0.00019315,2]
[329222670,1718188238102,-637.72,0.00019315,2]
[329222672,1718188238113,-716.58,0.00019315,2]
[329222674,1718188238124,-500.0,0.00019315,2]
[329222676,1718188238136,-1369.44,0.00019315,2]
[329222678,1718188238147,-500.0,0.00019315,2]
[329222680,1718188238158,-706.84,0.00019315,2]
[329222681,1718188238170,-1506.31,0.00019315,2]
[329222683,1718188238181,-1198.55,0.00019315,2]
[329222685,1718188238193,-425.9523823,0.00019315,2]
[329222687,1718188238205,-2418.67,0.00019315,2]
[329222689,1718188238215,-500.0,0.00019315,2]
[329222691,1718188238228,-500.0,0.00019315,2]
[329222693,1718188238239,-726.83326305,0.00019315,2]
[329222698,1718188238282,-865.16673695,0.00019315,2]
[329222700,1718188238293,-622.74,0.00019315,2]
[329222701,1718188238304,-500.0,0.00019315,2]
[329222703,1718188238315,-2961.95,0.00019315,2]
[329222705,1718188238327,-500.0,0.00019315,2]
[329222706,1718188238338,-509.21,0.00019315,2]
[329222707,1718188238352,-500.0,0.00019315,2]
[329222708,1718188238363,-1339.71,0.00019315,2]
[329222709,1718188238375,-500.0,0.00019315,2]
[329222710,1718188238386,-500.0,0.00019315,2]
[329222711,1718188238399,-500.0,0.00019315,2]
[329222712,1718188238411,-500.0,0.00019315,2]
[329222713,1718188238423,-500.0,0.00019315,2]
[329222714,1718188238434,-500.0,0.00019315,2]
[329222715,1718188238447,-500.0,0.00019315,2]
[329222716,1718188238460,-1536.32,0.00019315,2]
[329222717,1718188238471,-500.0,0.00019315,2]
[329222718,1718188238484,-500.0,0.00019315,2]
[329222719,1718188238505,-500.0,0.00019315,2]
[329222720,1718188238516,-439.77131074,0.00019315,2]
[329222721,1718188238527,-376.69086862,0.00019315,2]
[329222722,1718188238539,-500.0,0.00019315,2]
[329222723,1718188238551,-500.0,0.00019315,2]
[329222724,1718188238565,-844.28,0.00019315,2]
[329222725,1718188238576,-3491.63,0.00019315,2]
[329222726,1718188238591,-500.0,0.00019315,2]
[329222727,1718188238603,-500.0,0.00019315,2]
[329222728,1718188238616,-500.0,0.00019315,2]
[329222729,1718188238628,-500.0,0.00019387,2]
[329222730,1718188238642,-500.0,0.00019387,2]
[329222731,1718188238652,-500.0,0.00019387,2]
[329222732,1718188238663,-500.0,0.00019387,2]
[329222733,1718188238674,-500.0,0.00019387,2]
[329222734,1718188238685,-500.0,0.00019387,2]
[329222735,1718188238696,-500.0,0.00019387,2]
[329222736,1718188238707,-500.0,0.00019387,2]
[329222737,1718188238718,-500.0,0.00019387,2]
[329222738,1718188238728,-500.0,0.00019387,2]
[329222739,1718188238741,-500.0,0.00019387,2]
[329222740,1718188238754,-500.0,0.00019387,2]
[329222741,1718188238765,-287.67139726,0.00019387,2]
[329222742,1718188238775,-500.0,0.00019387,2]
[329222743,1718188238786,-500.0,0.00019387,2]
[329222744,1718188238798,-500.0,0.00019388,2]
[329222745,1718188238808,-500.0,0.00019451,2]
[329222746,1718188238819,-540.94147169,0.00019451,2]
[329222747,1718188238830,-258.24785129,0.00019451,2]
[329222748,1718188238843,-500.0,0.00019452,2]
[329222749,1718188238854,-636.38623295,0.00019452,2]
[329222750,1718188238866,-500.0,0.00019452,2]
[329222751,1718188238878,-500.0,0.00019452,2]
[329222752,1718188238897,-500.0,0.00019452,2]
[329222753,1718188238908,-500.0,0.00019452,2]
[329222754,1718188238919,-500.0,0.00019452,2]
[329222755,1718188238934,-203.91601384,0.00019452,2]
[329222756,1718188238945,-37.09219233,0.00019452,2]
[329222757,1718188238960,-462.90780767,0.00019452,2]
[329222758,1718188238972,-500.0,0.00019452,2]
[329222759,1718188238983,-1040.8,0.00019452,2]
[329222760,1718188238994,-383.47184875,0.00019452,2]
[329222761,1718188239057,-116.52815125,0.00019452,2]
[329222762,1718188239069,-500.0,0.00019452,2]
[329222763,1718188239081,-500.0,0.00019452,2]
[329222764,1718188239096,-500.0,0.00019452,2]
[329222765,1718188239110,-389.20316946,0.00019452,2]
[329222786,1718188240072,-150.0,0.00018092,2]
[329222787,1718188240086,-38061.0,0.00018092,2]
[329222789,1718188240102,-500.0,0.00019178,2]
[329222791,1718188240116,-500.0,0.00019178,2]
[329222794,1718188240144,-500.0,0.00019315,2]
[329222795,1718188240180,-110.79683054,0.00019452,2]
[329222798,1718188240200,-500.0,0.00019452,2]
[329222800,1718188240215,-500.0,0.00019452,2]
[329222802,1718188240229,-500.0,0.00019452,2]
[329222804,1718188240242,-500.0,0.00019452,2]
[329222806,1718188240256,-314.05096928,0.00019452,2]
[329222808,1718188240272,-500.0,0.00019452,2]
[329222810,1718188240284,-500.0,0.00019452,2]
[329222813,1718188240298,-500.0,0.00019452,2]
[329222815,1718188240315,-500.0,0.00019452,2]
[329222818,1718188240331,-538.19798069,0.00019452,2]
[329222843,1718188240527,-1017.92201931,0.00019452,2]
[329222846,1718188240541,-534.64,0.00019452,2]
[329222852,1718188240602,-1229.78,0.00019452,2]
[329222854,1718188240613,-500.0,0.00019452,2]
[329222856,1718188240627,-500.0,0.00019452,2]
[329222858,1718188240640,-500.0,0.00019452,2]
[329222860,1718188240653,-532.49,0.00019452,2]
[329222862,1718188240663,-1257.16,0.00019452,2]
[329222864,1718188240673,-686.59,0.00019452,2]
[329222866,1718188240685,-361.66335769,0.00019452,2]
[329222868,1718188240696,-500.0,0.00019452,2]
[329222870,1718188240706,-500.0,0.00019452,2]
[329222872,1718188240716,-500.0,0.00019452,2]
[329222873,1718188240727,-500.0,0.00019452,2]
[329222875,1718188240738,-500.0,0.00019452,2]
[329222878,1718188240756,-500.0,0.00019452,2]
[329222880,1718188240766,-500.0,0.00019452,2]
[329222882,1718188240778,-500.0,0.00019452,2]
[329222884,1718188240789,-500.0,0.00019452,2]
[329222886,1718188240800,-500.0,0.00019452,2]
[329222888,1718188240810,-500.0,0.00019452,2]
[329222889,1718188240820,-1647.76,0.00019452,2]
[329222891,1718188240831,-500.0,0.00019452,2]
[329222893,1718188240845,-1014.14,0.00019452,2]
[329222895,1718188240858,-500.0,0.00019452,2]
[329222897,1718188240872,-500.0,0.00019452,2]
[329222899,1718188240883,-500.0,0.00019452,2]
[329222901,1718188240894,-725.41,0.00019452,2]
[329222903,1718188240905,-708.79,0.00019452,2]
[329222905,1718188240916,-500.0,0.00019452,2]
[329222907,1718188240934,-500.0,0.00019452,2]
[329222909,1718188240946,-500.0,0.00019452,2]
[329222911,1718188240958,-500.0,0.00019452,2]
[329222913,1718188240971,-500.0,0.00019452,2]
[329222915,1718188240985,-700.49,0.00019452,2]
[329222918,1718188240997,-1282.93,0.00019452,2]
[329222919,1718188241032,-500.0,0.00019452,2]
[329222921,1718188241043,-500.0,0.00019452,2]
[329222923,1718188241054,-500.0,0.00019452,2]
[329222925,1718188241066,-500.0,0.00019452,2]
[329222927,1718188241077,-500.0,0.00019452,2]
[329222929,1718188241087,-500.0,0.00019452,2]
[329222931,1718188241099,-500.0,0.00019452,2]
[329222933,1718188241110,-500.0,0.00019452,2]
[329222935,1718188241121,-500.0,0.00019452,2]
[329222937,1718188241131,-500.0,0.00019452,2]
[329222939,1718188241142,-1217.81,0.00019452,2]
[329222941,1718188241152,-947.07,0.00019452,2]
[329222943,1718188241163,-500.0,0.00019452,2]
[329222945,1718188241175,-676.54,0.00019452,2]
[329222947,1718188241185,-1063.45,0.00019452,2]
[329222949,1718188241196,-461.65825798,0.00019452,2]
[329222951,1718188241207,-852.62,0.00019452,2]
[329222953,1718188241218,-628.41,0.00019452,2]
[329222955,1718188241228,-841.77,0.00019452,2]
[329222957,1718188241238,-500.0,0.00019452,2]
[329222959,1718188241251,-500.0,0.00019452,2]
[329222961,1718188241263,-500.0,0.00019452,2]
[329222963,1718188241274,-1088.32,0.00019452,2]
[329222965,1718188241285,-500.0,0.00019452,2]
[329222967,1718188241297,-500.0,0.00019452,2]
[329222969,1718188241308,-500.0,0.00019452,2]
[329222971,1718188241319,-789.81,0.00019452,2]
[329222973,1718188241329,-575.18,0.00019452,2]
[329222975,1718188241339,-532.67,0.00019452,2]
[329222977,1718188241351,-637.84,0.00019452,2]
[329222979,1718188241361,-637.72,0.00019452,2]
[329222981,1718188241371,-716.58,0.00019452,2]
[329222983,1718188241381,-1369.44,0.00019452,2]
[329222986,1718188241396,-500.0,0.00019452,2]
[329222987,1718188241406,-706.84,0.00019452,2]
[329222989,1718188241417,-1506.31,0.00019452,2]
[329222991,1718188241427,-1198.55,0.00019452,2]
[329222994,1718188241439,-2418.67,0.00019452,2]
[329222995,1718188241450,-500.0,0.00019452,2]
[329222997,1718188241462,-1592.0,0.00019452,2]
[329223000,1718188241474,-622.74,0.00019452,2]
[329223002,1718188241486,-500.0,0.00019452,2]
[329223004,1718188241497,-2961.95,0.00019452,2]
[329223006,1718188241509,-500.0,0.00019452,2]
[329223008,1718188241519,-509.21,0.00019452,2]
[329223010,1718188241530,-500.0,0.00019452,2]
[329223011,1718188241540,-1339.71,0.00019452,2]
[329223014,1718188241552,-500.0,0.00019452,2]
[329223015,1718188241562,-500.0,0.00019452,2]
[329223017,1718188241573,-500.0,0.00019452,2]
[329223019,1718188241583,-500.0,0.00019452,2]
[329223021,1718188241595,-1536.32,0.00019452,2]
[329223023,1718188241606,-500.0,0.00019452,2]
[329223025,1718188241616,-500.0,0.00019452,2]
[329223027,1718188241627,-500.0,0.00019452,2]
[329223029,1718188241638,-500.0,0.00019452,2]
[329223031,1718188241649,-500.0,0.00019452,2]
[329223033,1718188241659,-844.28,0.00019452,2]
[329223035,1718188241670,-500.0,0.00019452,2]
[329223037,1718188241680,-500.0,0.00019452,2]
[329223039,1718188241691,-3491.63,0.00019452,2]
[329223041,1718188241701,-500.0,0.00019452,2]
[329223043,1718188241711,-500.0,0.00019452,2]
[329223045,1718188241722,-500.0,0.00019521,2]
[329223047,1718188241732,-500.0,0.00019521,2]
[329223049,1718188241743,-840.63,0.00019521,2]
[329223051,1718188241753,-299.99,0.00019521,2]
[329223053,1718188241764,-500.0,0.00019521,2]
[329223055,1718188241774,-535.24,0.00019521,2]
[329223057,1718188241786,-484.23830202,0.00019521,2]
[329223059,1718188241796,-500.0,0.00019521,2]
[329223061,1718188241807,-500.0,0.00019521,2]
[329223063,1718188241817,-500.0,0.00019521,2]
[329223065,1718188241828,-520.60920488,0.00019521,2]
[329223067,1718188241838,-500.0,0.00019521,2]
[329223069,1718188241850,-500.0,0.00019521,2]
[329223071,1718188241861,-500.0,0.00019521,2]
[329223073,1718188241872,-500.0,0.00019521,2]
[329223075,1718188241882,-500.0,0.00019521,2]
[329223077,1718188241893,-500.0,0.00019521,2]
[329223079,1718188241904,-500.0,0.00019521,2]
[329223081,1718188241914,-500.0,0.00019521,2]
[329223083,1718188241925,-500.0,0.00019521,2]
[329223085,1718188241941,-500.0,0.00019521,2]
[329223087,1718188241952,-1877.92,0.00019521,2]
[329223089,1718188241962,-250.0,0.00019521,2]
[329223091,1718188241974,-1408.56,0.00019521,2]
[329223093,1718188241985,-500.0,0.00019521,2]
[329223095,1718188241996,-989.62,0.00019521,2]
[329223098,1718188242036,-500.0,0.00019521,2]
[329223100,1718188242047,-519.59,0.00019521,2]
[329223102,1718188242058,-500.0,0.00019521,2]
[329223104,1718188242076,-500.0,0.00019521,2]
[329223106,1718188242090,-2861.61,0.00019521,2]
[329223108,1718188242103,-500.0,0.00019521,2]
[329223110,1718188242114,-500.0,0.00019521,2]
[329223112,1718188242125,-500.0,0.00019521,2]
[329223114,1718188242135,-500.0,0.00019521,2]
[329223116,1718188242145,-500.0,0.00019521,2]
[329223118,1718188242156,-500.0,0.00019521,2]
[329223120,1718188242166,-280.14320952,0.00019521,2]
[329223122,1718188242178,-163.22397598,0.00019521,2]
[329223124,1718188242189,-500.0,0.00019521,2]
[329223126,1718188242200,-500.0,0.00019521,2]
[329223128,1718188242212,-500.0,0.00019521,2]
[329223130,1718188242222,-500.0,0.00019521,2]
[329223132,1718188242235,-500.0,0.00019521,2]
[329223134,1718188242246,-500.0,0.00019521,2]
[329223136,1718188242256,-500.0,0.00019521,2]
[329223138,1718188242267,-500.0,0.00019521,2]
[329223140,1718188242277,-500.0,0.00019521,2]
[329223142,1718188242288,-601.03,0.00019521,2]
[329223144,1718188242299,-500.0,0.00019521,2]
[329223146,1718188242310,-500.0,0.00019521,2]
[329223148,1718188242322,-3010.53119973,0.00019522,2]
[329223150,1718188242336,-500.0,0.00019524,2]
[329223152,1718188242348,-500.0,0.00019524,2]
[329223154,1718188242362,-500.0,0.00019524,2]
[329223156,1718188242375,-500.0,0.00019524,2]
[329223158,1718188242385,-500.0,0.00019524,2]
[329223160,1718188242396,-500.0,0.00019524,2]
[329223162,1718188242407,-500.0,0.00019524,2]
[329223164,1718188242419,-500.0,0.00019524,2]
[329223166,1718188242430,-500.0,0.00019524,2]
[329223168,1718188242441,-500.0,0.00019524,2]
[329223170,1718188242452,-500.0,0.00019524,2]
[329223172,1718188242467,-500.0,0.00019525,2]
[329223174,1718188242478,-500.0,0.00019589,2]
[329223177,1718188242488,-500.0,0.00019589,2]
[329223178,1718188242499,-500.0,0.00019589,2]
[329223181,1718188242510,-500.0,0.00019589,2]
[329223182,1718188242521,-500.0,0.00019589,2]
[329223184,1718188242531,-500.0,0.00019589,2]
[329223187,1718188242542,-500.0,0.00019589,2]
[329223188,1718188242553,-500.0,0.00019589,2]
[329223190,1718188242565,-1040.8,0.00019589,2]
[329223192,1718188242576,-500.0,0.00019589,2]
[329223194,1718188242587,-500.0,0.00019589,2]
[329223196,1718188242598,-500.0,0.00019589,2]
[329223198,1718188242608,-500.0,0.00019589,2]
[329223201,1718188242620,-500.0,0.00019589,2]
[329223203,1718188242632,-500.0,0.00019589,2]
[329223204,1718188242643,-244.64577155,0.00019589,2]
[329223207,1718188242654,-500.0,0.00019589,2]
[329223208,1718188242666,-500.0,0.00019589,2]
[329223210,1718188242677,-500.0,0.00019589,2]
[329223213,1718188242688,-500.0,0.00019589,2]
[329223214,1718188242699,-500.0,0.00019589,2]
[329223216,1718188242709,-500.0,0.00019589,2]
[329223218,1718188242720,-1556.12,0.00019589,2]
[329223220,1718188242731,-534.64,0.00019589,2]
[329223222,1718188242742,-1229.78,0.00019589,2]
[329223224,1718188242753,-478.23695411,0.00019589,2]
[329223226,1718188242765,-500.0,0.00019589,2]
[329223228,1718188242777,-500.0,0.00019589,2]
[329223230,1718188242790,-532.49,0.00019589,2]
[329223232,1718188242803,-1257.16,0.00019589,2]
[329223234,1718188242814,-686.59,0.00019589,2]
[329223236,1718188242825,-500.0,0.00019589,2]
[329223238,1718188242838,-500.0,0.00019589,2]
[329223240,1718188242851,-500.0,0.00019589,2]
[329223242,1718188242861,-500.0,0.00019589,2]
[329223244,1718188242874,-500.0,0.00019589,2]
[329223246,1718188242886,-500.0,0.00019589,2]
[329223248,1718188242897,-500.0,0.00019589,2]
[329223250,1718188242909,-500.0,0.00019589,2]
[329223252,1718188242926,-500.0,0.00019589,2]
[329223254,1718188242939,-220.05068159,0.00019589,2]
[329223257,1718188243015,-1647.76,0.00019589,2]
[329223258,1718188243038,-500.0,0.00019589,2]
[329223260,1718188243057,-1014.14,0.00019589,2]
[329223262,1718188243067,-500.0,0.00019589,2]
[329223263,1718188243082,-500.0,0.00019589,2]
[329223266,1718188243107,-500.0,0.00019589,2]
[329223268,1718188243121,-725.41,0.00019589,2]
[329223270,1718188243132,-708.79,0.00019589,2]
[329223272,1718188243143,-500.0,0.00019589,2]
[329223274,1718188243153,-500.0,0.00019589,2]
[329223276,1718188243165,-500.0,0.00019589,2]
[329223278,1718188243175,-500.0,0.00019589,2]
[329223280,1718188243185,-700.49,0.00019589,2]
[329223282,1718188243196,-1282.93,0.00019589,2]
[329223284,1718188243206,-500.0,0.00019589,2]
[329223286,1718188243216,-500.0,0.00019589,2]
[329223288,1718188243229,-500.0,0.00019589,2]
[329223290,1718188243240,-500.0,0.00019589,2]
[329223292,1718188243251,-500.0,0.00019589,2]
[329223294,1718188243262,-500.0,0.00019589,2]
[329223297,1718188243272,-500.0,0.00019589,2]
[329223299,1718188243283,-500.0,0.00019589,2]
[329223302,1718188243293,-500.0,0.00019589,2]
[329223305,1718188243304,-500.0,0.00019589,2]
[329223308,1718188243315,-1217.81,0.00019589,2]
[329223310,1718188243325,-947.07,0.00019589,2]
[329223312,1718188243336,-500.0,0.00019589,2]
[329223314,1718188243349,-676.54,0.00019589,2]
[329223315,1718188243360,-1063.45,0.00019589,2]
[329223317,1718188243370,-852.62,0.00019589,2]
[329223319,1718188243381,-628.41,0.00019589,2]
[329223321,1718188243391,-841.77,0.00019589,2]
[329223323,1718188243402,-500.0,0.00019589,2]
[329223325,1718188243412,-500.0,0.00019589,2]
[329223328,1718188243423,-500.0,0.00019589,2]
[329223329,1718188243434,-1088.32,0.00019589,2]
[329223331,1718188243444,-500.0,0.00019589,2]
[329223333,1718188243455,-500.0,0.00019589,2]
[329223335,1718188243466,-500.0,0.00019589,2]
[329223337,1718188243476,-789.81,0.00019589,2]
[329223339,1718188243487,-575.18,0.00019589,2]
[329223341,1718188243497,-532.67,0.00019589,2]
[329223343,1718188243507,-637.84,0.00019589,2]
[329223345,1718188243517,-637.72,0.00019589,2]
[329223347,1718188243528,-716.58,0.00019589,2]
[329223350,1718188243539,-1369.44,0.00019589,2]
[329223352,1718188243549,-500.0,0.00019589,2]
[329223354,1718188243563,-706.84,0.00019589,2]
[329223356,1718188243573,-1506.31,0.00019589,2]
[329223358,1718188243584,-1198.55,0.00019589,2]
[329223360,1718188243594,-2418.67,0.00019589,2]
[329223362,1718188243607,-500.0,0.00019589,2]
[329223364,1718188243618,-1592.0,0.00019589,2]
[329223366,1718188243628,-622.74,0.00019589,2]
[329223368,1718188243638,-500.0,0.00019589,2]
[329223370,1718188243649,-2961.95,0.00019589,2]
[329223372,1718188243659,-500.0,0.00019589,2]
[329223374,1718188243670,-509.21,0.00019589,2]
[329223376,1718188243681,-500.0,0.00019589,2]
[329223378,1718188243691,-1339.71,0.00019589,2]
[329223380,1718188243706,-183.51807548,0.00019589,2]
[329223382,1718188243718,-500.0,0.00019589,2]
[329223384,1718188243731,-500.0,0.00019589,2]
[329223386,1718188243746,-500.0,0.00019589,2]
[329223388,1718188243756,-1536.32,0.00019589,2]
[329223390,1718188243767,-500.0,0.00019589,2]
[329223392,1718188243777,-500.0,0.00019589,2]
[329223394,1718188243787,-500.0,0.00019589,2]
[329223396,1718188243797,-500.0,0.00019589,2]
[329223398,1718188243807,-500.0,0.00019589,2]
[329223400,1718188243818,-844.28,0.00019589,2]
[329223402,1718188243828,-500.0,0.00019589,2]
[329223404,1718188243838,-500.0,0.00019589,2]
[329223406,1718188243849,-500.0,0.00019589,2]
[329223408,1718188243859,-3491.63,0.00019589,2]
[329223410,1718188243870,-3699.56,0.00019637,2]
[329223412,1718188243880,-500.0,0.00019658,2]
[329223414,1718188243891,-840.63,0.00019658,2]
[329223416,1718188243902,-535.24,0.00019658,2]
[329223418,1718188243912,-500.0,0.00019658,2]
[329223420,1718188243925,-500.0,0.00019658,2]
[329223422,1718188243940,-500.0,0.00019658,2]
[329223424,1718188243951,-500.0,0.00019658,2]
[329223426,1718188243962,-500.0,0.00019658,2]
[329223428,1718188243974,-500.0,0.00019658,2]
[329223430,1718188243988,-500.0,0.00019658,2]
[329223432,1718188243999,-500.0,0.00019658,2]
[329223434,1718188244034,-500.0,0.00019658,2]
[329223436,1718188244046,-500.0,0.00019658,2]
[329223438,1718188244056,-500.0,0.00019658,2]
[329223440,1718188244067,-500.0,0.00019658,2]
[329223442,1718188244077,-1877.92,0.00019658,2]
[329223444,1718188244088,-250.0,0.00019658,2]
[329223446,1718188244099,-1408.56,0.00019658,2]
[329223448,1718188244110,-500.0,0.00019658,2]
[329223450,1718188244120,-989.62,0.00019658,2]
[329223452,1718188244133,-500.0,0.00019658,2]
[329223454,1718188244146,-519.59,0.00019658,2]
[329223456,1718188244157,-500.0,0.00019658,2]
[329223458,1718188244168,-500.0,0.00019658,2]
[329223460,1718188244178,-2861.61,0.00019658,2]
[329223462,1718188244188,-500.0,0.00019658,2]
[329223464,1718188244199,-500.0,0.00019658,2]
[329223466,1718188244209,-500.0,0.00019658,2]
[329223468,1718188244220,-500.0,0.00019658,2]
[329223470,1718188244231,-500.0,0.00019658,2]
[329223472,1718188244242,-500.0,0.00019658,2]
[329223474,1718188244253,-500.0,0.00019658,2]
[329223476,1718188244263,-500.0,0.00019658,2]
[329223478,1718188244273,-500.0,0.00019658,2]
[329223480,1718188244285,-500.0,0.00019658,2]
[329223482,1718188244296,-500.0,0.00019658,2]
[329223484,1718188244306,-527.58206424,0.00019658,2]
[329223486,1718188244317,-500.0,0.00019658,2]
[329223488,1718188244328,-500.0,0.00019658,2]
[329223490,1718188244338,-222.55735489,0.00019658,2]
[329223492,1718188244353,-601.03,0.00019658,2]
[329223494,1718188244364,-536.03710884,0.00019658,2]
[329223496,1718188244375,-500.0,0.00019658,2]
[329223498,1718188244386,-500.0,0.00019661,2]
[329223500,1718188244397,-500.0,0.00019661,2]
[329223502,1718188244407,-500.0,0.00019661,2]
[329223504,1718188244418,-500.0,0.00019661,2]
[329223506,1718188244428,-625.5,0.00019661,2]
[329223508,1718188244438,-500.0,0.00019661,2]
[329223510,1718188244449,-500.0,0.00019661,2]
[329223512,1718188244459,-500.0,0.00019661,2]
[329223514,1718188244469,-500.0,0.00019661,2]
[329223516,1718188244479,-500.0,0.00019661,2]
[329223518,1718188244490,-500.0,0.00019661,2]
[329223521,1718188244501,-569.16694733,0.00019662,2]
[329223523,1718188244512,-500.0,0.00019726,2]
[329223525,1718188244523,-268.56024867,0.00019726,2]
[329223527,1718188244533,-500.0,0.00019726,2]
[329223529,1718188244544,-500.0,0.00019726,2]
[329223531,1718188244555,-500.0,0.00019726,2]
[329223533,1718188244565,-283.24831886,0.00019726,2]
[329223535,1718188244576,-500.0,0.00019726,2]
[329223537,1718188244588,-500.0,0.00019726,2]
[329223539,1718188244599,-1040.8,0.00019726,2]
[329223541,1718188244612,-500.0,0.00019726,2]
[329223543,1718188244623,-500.0,0.00019726,2]
[329223545,1718188244635,-500.0,0.00019726,2]
[329223547,1718188244648,-500.0,0.00019726,2]
[329223549,1718188244660,-500.0,0.00019726,2]
[329223551,1718188244672,-500.0,0.00019726,2]
[329223552,1718188244685,-500.0,0.00019726,2]
[329223553,1718188244696,-500.0,0.00019726,2]
[329223554,1718188244706,-500.0,0.00019726,2]
[329223555,1718188244717,-500.0,0.00019726,2]
[329223556,1718188244727,-500.0,0.00019726,2]
[329223557,1718188244738,-500.0,0.00019726,2]
[329223558,1718188244749,-1556.12,0.00019726,2]
[329223559,1718188244761,-534.64,0.00019726,2]
[329223560,1718188244772,-1229.78,0.00019726,2]
[329223561,1718188244782,-500.0,0.00019726,2]
[329223562,1718188244793,-500.0,0.00019726,2]
[329223563,1718188244804,-532.49,0.00019726,2]
[329223565,1718188244815,-1257.16,0.00019726,2]
[329223567,1718188244827,-686.59,0.00019726,2]
[329223569,1718188244837,-500.0,0.00019726,2]
[329223571,1718188244849,-500.0,0.00019726,2]
[329223573,1718188244859,-500.0,0.00019726,2]
[329223575,1718188244870,-500.0,0.00019726,2]
[329223577,1718188244881,-500.0,0.00019726,2]